lending/lending_fUSD_20260209
["ID","MTS","AMOUNT","RATE_DAILY","PERIOD"]
[404860353,1770627038659,-151.74,0.00041222,2]
[404860355,1770627038668,-955.40168397,0.00041244,15]
[404860356,1770627038678,-153.0,0.000413,120]
[404860359,1770627038688,-151.74,0.00041425,2]
[404860361,1770627038699,-166.66,0.00041549,30]
[404860363,1770627038709,-151.74,0.00041628,2]
[404860365,1770627038718,-3583.33828721,0.00041629,2]
[404860367,1770627038727,-150.25,0.00041706,120]
[404860369,1770627038736,-150.25,0.00041806,120]
[404860371,1770627038745,-151.74,0.00041831,2]
[404860373,1770627038755,-955.40168397,0.00041855,15]
[404860375,1770627038764,-150.25,0.00041906,120]
[404860377,1770627038773,-150.25,0.00042006,120]
[404860379,1770627038783,-151.74,0.00042034,2]
[404860381,1770627038792,-150.25,0.00042106,120]
[404860383,1770627038801,-150.25,0.00042206,120]
[404860385,1770627038811,-150.0,0.0004223,120]
[404860387,1770627038824,-150.0,0.0004224,120]
[404860389,1770627038833,-155.43779381,0.00042282,2]
[404860392,1770627038847,-150.25,0.00042306,120]
[404860393,1770627038856,-151.0,0.00042327,14]
[404860394,1770627038866,-616.0,0.0004233,2]
[404860395,1770627038876,-1407.0,0.0004233,2]
[404860396,1770627038887,-3485.0,0.0004233,2]
[404860397,1770627038896,-918.0,0.0004233,2]
[404860398,1770627038905,-1206.0,0.0004233,2]
[404860399,1770627038916,-1272.0,0.0004233,2]
[404860400,1770627038930,-2448.0,0.0004233,2]
[404860401,1770627038940,-3256.0,0.0004233,2]
[404860402,1770627038950,-166.66,0.00042356,30]
[404860403,1770627038960,-150.25,0.00042406,120]
[404860404,1770627038969,-150.0,0.0004241,120]
[404860405,1770627038979,-4096.7346666,0.00042454,2]
[404860406,1770627038988,-955.40168397,0.00042466,15]
[404860407,1770627038998,-150.25,0.00042506,120]
[404860408,1770627039007,-153.0,0.000426,120]
[404860409,1770627039017,-150.25,0.00042606,120]
[404860410,1770627039026,-150.25,0.00042706,120]
[404860411,1770627039036,-1334.95209065,0.0004274,7]
[404860412,1770627039046,-150.25,0.00042806,120]
[404860413,1770627039056,-150.0,0.00042815,120]
[404860414,1770627039065,-150.25,0.00042906,120]
[404860415,1770627039075,-892.41,0.00043,120]
[404860416,1770627039084,-500.0,0.00043,120]
[404860417,1770627039095,-150.25,0.00043006,120]
[404860418,1770627039105,-34417.0,0.00043071,30]
[404860419,1770627039114,-955.40168397,0.00043078,15]
[404860420,1770627039124,-273.25366484,0.00043106,2]
[404860421,1770627039134,-150.25,0.00043106,120]
[404860422,1770627039143,-150.25,0.00043206,120]
[404860423,1770627039152,-4398.3550395,0.0004328,2]
[404860424,1770627039162,-2000.0,0.000433,2]
[404860425,1770627039171,-150.25,0.00043306,120]
[404860426,1770627039182,-150.25,0.00043406,120]
[404860427,1770627039191,-150.0,0.00043422,120]
[404860428,1770627039201,-4255.0,0.000435,7]
[404860429,1770627039211,-150.0,0.000435,7]
[404860430,1770627039220,-455.81161391,0.000435,120]
[404860431,1770627039230,-150.25,0.00043506,120]
[404860432,1770627039243,-186.63,0.0004351,14]
[404860433,1770627039252,-34417.0,0.00043515,30]
[404860434,1770627039263,-892.0,0.0004355,120]
[404860435,1770627039274,-150.25,0.00043606,120]
[404860436,1770627039284,-955.40168397,0.00043689,15]
[404860437,1770627039292,-150.0,0.00043694,120]
[404860438,1770627039302,-150.25,0.00043706,120]
[404860440,1770627039311,-150.0,0.00043735,120]
[404860441,1770627039320,-1044.4,0.0004375,120]
[404860442,1770627039329,-153.0,0.000438,120]
[404860443,1770627039338,-150.25,0.00043806,120]
[404860444,1770627039348,-173.96,0.00043808,2]
[404860445,1770627039358,-1521.2865663,0.00043828,2]
[404860446,1770627039367,-170.70857607,0.00043836,30]
[404860447,1770627039376,-150.0,0.00043868,120]
[404860448,1770627039386,-197.49223389,0.000439,28]
[404860449,1770627039395,-150.25,0.00043906,120]
[404860450,1770627039405,-30706.60994951,0.00043959,30]
[404860451,1770627039418,-1523.42760257,0.00043959,30]
[404860452,1770627039429,-829.36748393,0.00043959,30]
[404860453,1770627039441,-1128.25873982,0.00043959,30]
[404860454,1770627039452,-229.33622417,0.00043959,30]
[404860455,1770627039461,-506.53246669,0.00043973,10]
[404860456,1770627039470,-502.3410841,0.00043973,10]
[404860457,1770627039479,-235.67964802,0.00043973,10]
[404860458,1770627039489,-500.0,0.00043973,10]
[404860459,1770627039498,-500.0,0.00043973,10]
[404860460,1770627039507,-503.2007828,0.00043973,10]
[404860461,1770627039517,-500.0,0.00043973,10]
[404860462,1770627039527,-500.0,0.00043973,10]
[404860463,1770627039536,-500.0,0.00043973,10]
[404860464,1770627039545,-507.42644948,0.00043973,10]
[404860465,1770627039555,-503.50531251,0.00043973,7]
[404860466,1770627039564,-500.0,0.00043973,10]
[404860467,1770627039573,-500.0,0.00043973,10]
[404860468,1770627039583,-504.39613681,0.00043973,10]
[404860469,1770627039592,-500.0,0.00043973,10]
[404860470,1770627039602,-500.0,0.00043973,10]
[404860471,1770627039611,-209.99,0.0004399,2]
[404860472,1770627039623,-209.99,0.0004399,2]
[404860473,1770627039632,-84889.94918157,0.00044,120]
[404860474,1770627039642,-1000.0,0.00044,120]
[404860475,1770627039652,-7404.90179688,0.00044,2]
[404860476,1770627039661,-15491.1588883,0.00044,120]
[404860477,1770627039671,-5000.0,0.00044,30]
[404860478,1770627039681,-5000.0,0.00044,30]
[404860479,1770627039694,-3000.0,0.00044,30]
[404860480,1770627039704,-5000.0,0.00044,30]
[404860481,1770627039713,-3202.76,0.00044,14]
[404860482,1770627039723,-151.0,0.00044,120]
[404860483,1770627039733,-151.0,0.00044,60]
[404860484,1770627039743,-151.0,0.00044,120]
[404860485,1770627039752,-338.253975,0.00044,120]
[404860486,1770627039761,-338.253975,0.00044,120]
[404860487,1770627039770,-338.253975,0.00044,120]
[404860488,1770627039780,-338.253975,0.00044,120]
[404860490,1770627039791,-183.194782,0.00044,120]
[404860492,1770627039800,-154.208958,0.00044,120]
[404860494,1770627039809,-1668.702915,0.00044,120]
[404860495,1770627039821,-1668.702915,0.00044,120]
[404860496,1770627039830,-1668.702915,0.00044,120]
[404860497,1770627039839,-1668.702915,0.00044,120]
[404860498,1770627039848,-150.25,0.00044006,120]
[404860499,1770627039859,-150.0,0.00044049,120]
[404860500,1770627039868,-150.0,0.00044051,120]
[404860501,1770627039877,-150.0,0.00044062,120]
[404860502,1770627039887,-150.0,0.00044063,120]
[404860503,1770627039898,-150.0,0.00044082,120]
[404860504,1770627039907,-150.0,0.00044084,120]
[404860505,1770627039917,-4565.2088628,0.00044106,2]
[404860506,1770627039926,-150.25,0.00044106,120]
[404860507,1770627039936,-186.63,0.00044205,14]
[404860508,1770627039946,-150.25,0.00044206,120]
[404860509,1770627039955,-1169.4594,0.00044233,3]
[404860510,1770627039965,-2000.0,0.00044233,3]
[404860511,1770627039975,-237.8504,0.00044256,120]
[404860512,1770627039985,-188.99686363,0.00044256,120]
[404860513,1770627039995,-5636.38195568,0.00044256,2]
[404860514,1770627040004,-631.27272042,0.00044256,2]
[404860515,1770627040014,-165.88513622,0.00044256,15]
[404860516,1770627040025,-753.10143155,0.00044256,2]
[404860517,1770627040035,-753.10143155,0.00044274,2]
[404860518,1770627040044,-753.10143155,0.00044292,2]
[404860519,1770627040054,-213.51485371,0.000443,120]
[404860520,1770627040063,-955.40168397,0.000443,15]
[404860521,1770627040073,-188.99686362,0.00044302,120]
[404860522,1770627040083,-5636.38195567,0.00044302,2]
[404860523,1770627040092,-631.2727204,0.00044302,2]
[404860524,1770627040101,-150.25,0.00044306,120]
[404860525,1770627040111,-753.10143155,0.00044311,2]
[404860526,1770627040120,-753.10143155,0.00044329,2]
[404860527,1770627040129,-209.99,0.00044337,2]
[404860528,1770627040138,-221.0,0.00044342,120]
[404860529,1770627040148,-209.99,0.00044346,2]
[404860530,1770627040157,-188.99686362,0.00044347,120]
[404860531,1770627040166,-5636.38195567,0.00044347,2]
[404860532,1770627040176,-631.2727204,0.00044347,2]
[404860533,1770627040186,-753.10143155,0.00044347,2]
[404860534,1770627040197,-1999.0,0.00044355,120]
[404860535,1770627040206,-40647.49867874,0.00044356,53]
[404860536,1770627040216,-182.35346532,0.00044356,120]
[404860537,1770627040226,-503.49449505,0.00044356,90]
[404860538,1770627040235,-500.0,0.00044356,120]
[404860539,1770627040245,-510.0305959,0.00044356,120]
[404860540,1770627040254,-500.0,0.00044356,120]
[404860541,1770627040263,-514.97467446,0.00044356,120]
[404860542,1770627040272,-500.0,0.00044356,120]
[404860543,1770627040282,-500.0,0.00044356,120]
[404860544,1770627040291,-500.0,0.00044356,120]
[404860545,1770627040300,-500.0,0.00044356,120]
[404860546,1770627040310,-502.48114774,0.00044356,120]
[404860547,1770627040319,-447.19352986,0.00044356,120]
[404860548,1770627040328,-529.66603477,0.00044356,120]
[404860549,1770627040337,-500.0,0.00044356,120]
[404860550,1770627040347,-447.94714448,0.00044356,120]
[404860551,1770627040356,-500.0,0.00044356,120]
[404860552,1770627040367,-505.23734722,0.00044356,120]
[404860553,1770627040376,-500.0,0.00044356,120]
[404860554,1770627040386,-500.0,0.00044356,120]
[404860555,1770627040395,-500.0,0.00044356,120]
[404860556,1770627040404,-500.0,0.00044356,120]
[404860557,1770627040413,-500.0,0.00044356,120]
[404860558,1770627040423,-500.0,0.00044356,120]
[404860559,1770627040433,-500.0,0.00044356,120]
[404860560,1770627040443,-500.0,0.00044356,120]
[404860561,1770627040452,-500.0,0.00044356,120]
[404860562,1770627040461,-549.67321698,0.00044356,120]
[404860563,1770627040471,-500.0,0.00044356,120]
[404860564,1770627040690,-500.0,0.00044356,120]
[404860565,1770627040700,-500.0,0.00044356,120]
[404860566,1770627040710,-500.0,0.00044356,120]
[404860567,1770627040721,-500.0,0.00044356,120]
[404860568,1770627040731,-500.0,0.00044356,120]
[404860569,1770627040740,-500.0,0.00044356,120]
[404860570,1770627040749,-432.0321679,0.00044356,120]
[404860571,1770627040759,-500.0,0.00044356,120]
[404860572,1770627040768,-507.02984844,0.00044356,120]
[404860573,1770627040777,-500.0,0.00044356,120]
[404860574,1770627040786,-506.03771804,0.00044356,120]
[404860575,1770627040796,-500.0,0.00044356,120]
[404860576,1770627040805,-624.38717668,0.00044356,120]
[404860577,1770627040815,-500.0,0.00044356,120]
[404860578,1770627040828,-500.0,0.00044356,120]
[404860579,1770627040837,-505.2663619,0.00044356,120]
[404860580,1770627040847,-500.0,0.00044356,120]
[404860581,1770627040856,-500.0,0.00044356,120]
[404860582,1770627040867,-538.82869155,0.00044356,120]
[404860583,1770627040876,-537.95221098,0.00044356,120]
[404860584,1770627040885,-500.0,0.00044356,120]
[404860585,1770627040895,-500.0,0.00044356,120]
[404860586,1770627040904,-531.66356469,0.00044356,120]
[404860587,1770627040914,-510.71645545,0.00044356,120]
[404860588,1770627040923,-519.72628038,0.00044356,120]
[404860589,1770627040932,-506.00332288,0.00044356,120]
[404860590,1770627040944,-532.79824125,0.00044356,120]
[404860591,1770627040954,-500.0,0.00044356,120]
[404860592,1770627040963,-500.0,0.00044356,120]
[404860593,1770627040973,-500.0,0.00044356,120]
[404860594,1770627040982,-500.0,0.00044356,120]
[404860595,1770627040991,-500.0,0.00044356,120]
[404860596,1770627041000,-500.0,0.00044356,120]
[404860597,1770627041010,-500.0,0.00044356,120]
[404860598,1770627041019,-530.85432876,0.00044356,120]
[404860599,1770627041029,-500.0,0.00044356,120]
[404860600,1770627041039,-514.47905976,0.00044356,120]
[404860601,1770627041048,-500.0,0.00044356,120]
[404860602,1770627041058,-519.06731037,0.00044356,120]
[404860603,1770627041068,-500.0,0.00044356,120]
[404860604,1770627041078,-500.0,0.00044356,120]
[404860605,1770627041087,-500.0,0.00044356,120]
[404860606,1770627041096,-500.0,0.00044356,120]
[404860607,1770627041105,-500.0,0.00044356,120]
[404860608,1770627041115,-500.0,0.00044356,120]
[404860609,1770627041124,-500.0,0.00044356,120]
[404860610,1770627041133,-539.15362273,0.00044356,120]
[404860611,1770627041142,-500.0,0.00044356,120]
[404860612,1770627041151,-500.0,0.00044356,120]
[404860613,1770627041160,-500.0,0.00044356,120]
[404860614,1770627041169,-500.0,0.00044356,120]
[404860615,1770627041179,-500.0,0.00044356,120]
[404860616,1770627041190,-500.0,0.00044356,120]
[404860617,1770627041199,-500.0,0.00044356,120]
[404860618,1770627041208,-500.0,0.00044356,120]
[404860619,1770627041217,-500.0,0.00044356,120]
[404860620,1770627041227,-500.0,0.00044356,120]
[404860621,1770627041237,-507.97850755,0.00044356,120]
[404860622,1770627041246,-500.0,0.00044356,120]
[404860623,1770627041255,-500.0,0.00044356,120]
[404860624,1770627041264,-500.0,0.00044356,120]
[404860625,1770627041273,-500.0,0.00044356,120]
[404860626,1770627041282,-500.0,0.00044356,120]
[404860627,1770627041291,-500.0,0.00044356,120]
[404860628,1770627041300,-500.0,0.00044356,120]
[404860629,1770627041309,-500.0,0.00044356,120]
[404860630,1770627041318,-500.0,0.00044356,120]
[404860631,1770627041327,-500.0,0.00044356,120]
[404860632,1770627041336,-235.11977267,0.00044356,120]
[404860633,1770627041346,-500.0,0.00044356,120]
[404860634,1770627041355,-500.0,0.00044356,120]
[404860635,1770627041363,-500.0,0.00044356,120]
[404860636,1770627041372,-500.0,0.00044356,120]
[404860637,1770627041381,-500.0,0.00044356,120]
[404860638,1770627041390,-500.0,0.00044356,60]
[404860639,1770627041399,-521.72090483,0.00044356,120]
[404860640,1770627041409,-500.0,0.00044356,60]
[404860641,1770627041418,-500.0,0.00044356,60]
[404860642,1770627041427,-500.0,0.00044356,60]
[404860643,1770627041438,-602.02013154,0.00044356,60]
[404860644,1770627041447,-500.0,0.00044356,120]
[404860645,1770627041456,-500.0,0.00044356,120]
[404860646,1770627041465,-500.0,0.00044356,120]
[404860647,1770627041475,-500.0,0.00044356,120]
[404860648,1770627041484,-500.0,0.00044356,120]
[404860649,1770627041493,-500.0,0.00044356,120]
[404860650,1770627041502,-557.23274272,0.00044356,120]
[404860651,1770627041512,-515.64112469,0.00044356,120]
[404860652,1770627041522,-500.0,0.00044356,120]
[404860653,1770627041531,-521.62251546,0.00044356,120]
[404860654,1770627041541,-490.21391305,0.00044356,120]
[404860655,1770627041551,-500.0,0.00044356,120]
[404860656,1770627041560,-500.0,0.00044356,120]
[404860657,1770627041569,-517.04193613,0.00044356,120]
[404860658,1770627041577,-500.0,0.00044356,120]
[404860659,1770627041588,-500.0,0.00044356,120]
[404860660,1770627041597,-500.0,0.00044356,120]
[404860661,1770627041606,-500.0,0.00044356,120]
[404860662,1770627041615,-500.0,0.00044356,120]
[404860663,1770627041624,-500.0,0.00044356,120]
[404860664,1770627041634,-500.0,0.00044356,120]
[404860665,1770627041643,-500.0,0.00044356,120]
[404860666,1770627041652,-500.0,0.00044356,120]
[404860667,1770627041661,-500.0,0.00044356,120]
[404860668,1770627041670,-500.0,0.00044356,120]
[404860669,1770627041679,-500.0,0.00044356,120]
[404860670,1770627041688,-500.0,0.00044356,120]
[404860671,1770627041697,-500.0,0.00044356,120]
[404860672,1770627041707,-500.0,0.00044356,120]
[404860673,1770627041716,-500.0,0.00044356,120]
[404860674,1770627041725,-500.0,0.00044356,120]
[404860675,1770627041734,-500.0,0.00044356,120]
[404860676,1770627041744,-500.0,0.00044356,120]
[404860677,1770627041753,-500.0,0.00044356,120]
[404860678,1770627041763,-500.0,0.00044356,120]
[404860679,1770627041772,-500.0,0.00044356,120]
[404860680,1770627041781,-340.87840016,0.00044356,120]
[404860681,1770627041790,-500.0,0.00044356,120]
[404860682,1770627041799,-589.50495789,0.00044356,120]
[404860683,1770627041808,-500.0,0.00044356,120]
[404860684,1770627041820,-500.0,0.00044356,120]
[404860685,1770627041830,-500.0,0.00044356,120]
[404860686,1770627041839,-500.0,0.00044356,120]
[404860687,1770627041847,-500.0,0.00044356,120]
[404860688,1770627041857,-500.0,0.00044356,120]
[404860689,1770627041866,-500.0,0.00044356,120]
[404860690,1770627041876,-155.300447,0.00044356,120]
[404860691,1770627041884,-500.0,0.00044356,120]
[404860692,1770627041896,-278.76092569,0.00044356,120]
[404860693,1770627041905,-500.0,0.00044356,120]
[404860694,1770627041915,-500.0,0.00044356,120]
[404860695,1770627041924,-500.0,0.00044356,120]
[404860696,1770627041934,-565.5612693,0.00044356,120]
[404860697,1770627041943,-500.0,0.00044356,120]
[404860698,1770627041952,-500.0,0.00044356,120]
[404860699,1770627041961,-500.0,0.00044356,120]
[404860700,1770627041970,-520.3111747,0.00044356,120]
[404860701,1770627041979,-500.0,0.00044356,120]
[404860702,1770627041989,-500.0,0.00044356,120]
[404860703,1770627041998,-500.0,0.00044356,120]
[404860704,1770627042007,-500.0,0.00044356,120]
[404860705,1770627042018,-500.0,0.00044356,120]
[404860706,1770627042027,-500.0,0.00044356,120]
[404860707,1770627042036,-500.0,0.00044356,120]
[404860708,1770627042045,-500.0,0.00044356,120]
[404860709,1770627042054,-502.40970609,0.00044356,120]
[404860710,1770627042062,-500.0,0.00044356,120]
[404860711,1770627042071,-500.0,0.00044356,120]
[404860712,1770627042080,-544.70576271,0.00044356,120]
[404860713,1770627042089,-507.02534816,0.00044356,120]
[404860714,1770627042098,-500.0,0.00044356,120]
[404860715,1770627042107,-500.0,0.00044356,120]
[404860716,1770627042116,-500.0,0.00044356,120]
[404860718,1770627042127,-500.0,0.00044356,120]
[404860719,1770627042135,-500.0,0.00044356,120]
[404860720,1770627042144,-539.14923282,0.00044356,120]
[404860721,1770627042153,-500.0,0.00044356,120]
[404860722,1770627042162,-508.55218609,0.00044356,120]
[404860723,1770627042171,-500.0,0.00044356,120]
[404860724,1770627042180,-500.0,0.00044356,120]
[404860725,1770627042190,-529.21107526,0.00044356,120]
[404860726,1770627042199,-544.75989868,0.00044356,120]
[404860727,1770627042209,-511.2830606,0.00044356,120]
[404860728,1770627042218,-500.0,0.00044356,120]
[404860729,1770627042227,-500.0,0.00044356,120]
[404860730,1770627042236,-500.0,0.00044356,120]
[404860731,1770627042246,-500.0,0.00044356,120]
[404860732,1770627042256,-500.0,0.00044356,120]
[404860733,1770627042267,-525.06567098,0.00044356,120]
[404860734,1770627042276,-500.0,0.00044356,120]
[404860735,1770627042285,-500.0,0.00044356,120]
[404860736,1770627042295,-500.0,0.00044356,120]
[404860737,1770627042306,-500.0,0.00044356,120]
[404860738,1770627042316,-526.00774523,0.00044356,120]
[404860739,1770627042327,-500.0,0.00044356,120]
[404860740,1770627042336,-500.0,0.00044356,120]
[404860741,1770627042345,-500.0,0.00044356,120]
[404860742,1770627042354,-500.0,0.00044356,120]
[404860743,1770627042363,-500.0,0.00044356,120]
[404860744,1770627042372,-289.31349761,0.00044356,120]
[404860745,1770627042381,-500.0,0.00044356,120]
[404860746,1770627042391,-500.0,0.00044356,120]
[404860747,1770627042399,-500.0,0.00044356,120]
[404860748,1770627042408,-500.0,0.00044356,120]
[404860749,1770627042418,-500.0,0.00044356,120]
[404860750,1770627042427,-500.0,0.00044356,120]
[404860751,1770627042436,-349.1692959,0.00044356,120]
[404860752,1770627042445,-500.0,0.00044356,120]
[404860753,1770627042454,-506.32075954,0.00044356,120]
[404860754,1770627042463,-500.0,0.00044356,120]
[404860755,1770627042472,-500.0,0.00044356,120]
[404860756,1770627042481,-500.0,0.00044356,120]
[404860757,1770627042490,-531.29984921,0.00044356,120]
[404860758,1770627042499,-522.04418988,0.00044356,120]
[404860759,1770627042508,-501.59145176,0.00044356,120]
[404860760,1770627042517,-500.0,0.00044356,120]
[404860761,1770627042526,-500.0,0.00044356,120]
[404860762,1770627042535,-500.0,0.00044356,120]
[404860763,1770627042545,-527.38077202,0.00044356,120]
[404860764,1770627042555,-500.0,0.00044356,120]
[404860765,1770627042563,-500.0,0.00044356,120]
[404860766,1770627042573,-500.0,0.00044356,120]
[404860767,1770627042582,-509.7090087,0.00044356,120]
[404860768,1770627042591,-500.0,0.00044356,120]
[404860769,1770627042600,-500.0,0.00044356,120]
[404860770,1770627042610,-509.42118323,0.00044356,120]
[404860771,1770627042620,-500.0,0.00044356,120]
[404860772,1770627042630,-500.0,0.00044356,120]
[404860773,1770627042640,-500.0,0.00044356,120]
[404860774,1770627042649,-500.0,0.00044356,120]
[404860775,1770627042658,-556.74196727,0.00044356,120]
[404860776,1770627042668,-530.07557932,0.00044356,120]
[404860777,1770627042677,-500.0,0.00044356,120]
[404860778,1770627042687,-500.0,0.00044356,120]
[404860779,1770627042696,-500.0,0.00044356,120]
[404860780,1770627042706,-500.0,0.00044356,120]
[404860781,1770627042715,-500.0,0.00044356,120]
[404860782,1770627042724,-500.0,0.00044356,120]
[404860783,1770627042733,-500.0,0.00044356,120]
[404860784,1770627042743,-500.0,0.00044356,120]
[404860785,1770627042752,-500.0,0.00044356,120]
[404860786,1770627042762,-500.0,0.00044356,120]
[404860787,1770627042771,-500.0,0.00044356,120]
[404860788,1770627042780,-500.0,0.00044356,120]
[404860789,1770627042789,-603.88243643,0.00044356,120]
[404860790,1770627042799,-500.0,0.00044356,120]
[404860791,1770627042807,-500.0,0.00044356,120]
[404860792,1770627042818,-500.0,0.00044356,120]
[404860793,1770627042831,-500.0,0.00044356,120]
[404860794,1770627042840,-500.0,0.00044356,120]
[404860795,1770627042850,-500.0,0.00044356,120]
[404860797,1770627042858,-500.0,0.00044356,120]
[404860799,1770627042870,-534.63167982,0.00044356,120]
[404860800,1770627042879,-158.08514357,0.00044356,120]
[404860801,1770627042890,-500.0,0.00044356,120]
[404860802,1770627042900,-359.1432356,0.00044356,120]
[404860803,1770627042909,-500.0,0.00044356,120]
[404860806,1770627042918,-500.0,0.00044356,120]
[404860808,1770627042928,-592.49834387,0.00044356,120]
[404860811,1770627042939,-500.0,0.00044356,120]
[404860813,1770627042948,-500.0,0.00044356,120]
[404860815,1770627042957,-500.0,0.00044356,120]
[404860816,1770627042967,-500.0,0.00044356,120]
[404860817,1770627042976,-500.0,0.00044356,120]
[404860818,1770627042985,-500.0,0.00044356,120]
[404860819,1770627042995,-528.60430631,0.00044356,120]
[404860820,1770627043004,-500.0,0.00044356,120]
[404860821,1770627043013,-500.0,0.00044356,120]
[404860822,1770627043023,-500.0,0.00044356,120]
[404860823,1770627043033,-512.01327693,0.00044356,120]
[404860824,1770627043043,-601.47731176,0.00044356,120]
[404860825,1770627043054,-331.98717974,0.00044356,120]
[404860826,1770627043066,-500.0,0.00044356,120]
[404860827,1770627043075,-500.0,0.00044356,120]
[404860828,1770627043085,-500.0,0.00044356,120]
[404860829,1770627043094,-510.91617939,0.00044356,120]
[404860830,1770627043104,-500.0,0.00044356,120]
[404860831,1770627043113,-500.0,0.00044356,120]
[404860832,1770627043123,-500.0,0.00044356,120]
[404860833,1770627043133,-500.0,0.00044356,120]
[404860834,1770627043142,-500.0,0.00044356,120]
[404860835,1770627043151,-229.92065015,0.00044356,120]
[404860836,1770627043161,-500.0,0.00044356,53]
[404860837,1770627043170,-500.0,0.00044356,53]
[404860838,1770627043179,-500.0,0.00044356,53]
[404860839,1770627043190,-500.0,0.00044356,53]
[404860840,1770627043199,-500.0,0.00044356,53]
[404860841,1770627043208,-500.0,0.00044356,53]
[404860842,1770627043218,-500.0,0.00044356,53]
[404860843,1770627043228,-500.0,0.00044356,53]
[404860844,1770627043237,-500.0,0.00044356,53]
[404860845,1770627043246,-500.0,0.00044356,53]
[404860846,1770627043255,-500.0,0.00044356,53]
[404860847,1770627043264,-551.20080958,0.00044356,53]
[404860848,1770627043273,-274.23425555,0.00044356,120]
[404860849,1770627043282,-500.0,0.00044356,120]
[404860850,1770627043291,-500.0,0.00044356,120]
[404860851,1770627043299,-500.0,0.00044356,120]
[404860852,1770627043308,-500.0,0.00044356,120]
[404860853,1770627043318,-521.1052901,0.00044356,120]
[404860854,1770627043327,-500.0,0.00044356,120]
[404860855,1770627043336,-500.0,0.00044356,120]
[404860856,1770627043345,-500.0,0.00044356,120]
[404860857,1770627043354,-500.0,0.00044356,120]
[404860858,1770627043363,-500.0,0.00044356,120]
[404860859,1770627043372,-510.51683489,0.00044356,120]
[404860860,1770627043380,-500.0,0.00044356,120]
[404860861,1770627043390,-317.81,0.00044356,120]
[404860862,1770627043399,-500.0,0.00044356,120]
[404860863,1770627043408,-517.18647558,0.00044356,120]
[404860864,1770627043418,-500.0,0.00044356,120]
[404860865,1770627043427,-505.62381506,0.00044356,120]
[404860866,1770627043436,-500.0,0.00044356,120]
[404860867,1770627043446,-520.40469439,0.00044356,120]
[404860868,1770627043455,-500.0,0.00044356,120]
[404860869,1770627043464,-500.0,0.00044356,120]
[404860870,1770627043473,-526.64284735,0.00044356,120]
[404860871,1770627043482,-506.50227593,0.00044356,120]
[404860872,1770627043491,-500.0,0.00044356,120]
[404860873,1770627043500,-521.99881144,0.00044356,120]
[404860874,1770627043510,-500.0,0.00044356,120]
[404860875,1770627043519,-500.0,0.00044356,120]
[404860876,1770627043528,-500.0,0.00044356,120]
[404860877,1770627043539,-500.0,0.00044356,120]
[404860878,1770627043548,-500.0,0.00044356,120]
[404860879,1770627043557,-518.41944905,0.00044356,120]
[404860880,1770627043566,-500.0,0.00044356,120]
[404860881,1770627043575,-500.0,0.00044356,120]
[404860882,1770627043584,-500.0,0.00044356,120]
[404860883,1770627043594,-500.0,0.00044356,120]
[404860884,1770627043603,-500.0,0.00044356,120]
[404860885,1770627043613,-500.0,0.00044356,120]
[404860886,1770627043622,-197.38,0.00044356,120]